Cogmind - Beta 14 @@@ ROGUE MODE // 2024.12.23 @ 18:24:24 Player: blackdogzx Result: Destroyed by S-10 Pest with Light Assault Rifle Performance ------------- Evolutions (0) 0 Regions Visited (1) 200 Robots Destroyed (2) 10 Value Destroyed (81) 81 Prototype IDs (0) 0 Alien Tech Used (0) 0 Bonus (0) 0 TOTAL SCORE: 291 Bonus ------- None Cogmind --------- Core Integrity 0/250 Matter 300/300 Energy 100/100 System Corruption 0% Temperature Cool (0) Movement Core (100) Ox1 Location -10/Materials Parts ------- > --- POWER (1) -------- (None) > --- PROPULSION (2) --- (None) > --- UTILITY (2) ------ Small Storage Unit > --- WEAPON (2) ------- (None) > --- INVENTORY (8) ---- (None) Peak State ------------ > --- POWER ------------ Light Ion Engine > --- PROPULSION ------- Aluminum Leg Aluminum Leg > --- UTILITY ---------- Small Storage Unit > --- WEAPON ----------- Assault Rifle > --- INVENTORY -------- (None) [Rating: 5] Favorites ----------- Power Light Ion Engine Engine Light Ion Engine Propulsion Aluminum Leg Leg Aluminum Leg Utility Small Storage Unit Storage Small Storage Unit Weapon Assault Rifle Ballistic Gun Assault Rifle Build | -11 -10 ------- Run | Yrd Mat Slots Evolved . | . . Power . | . . Propulsion . | . . Utility . | . . Weapon . | . . Parts Attached 6 | 5 1 Power 2 | 1 1 Engine 2 | 1 1 Core . | . . Reactor . | . . Propulsion 2 | 2 . Treads . | . . Leg 2 | 2 . Wheel . | . . Hover . | . . Flight . | . . Utility 1 | 1 . Device . | . . Storage 1 | 1 . Processor . | . . Hackware . | . . Protection . | . . Artifact . | . . Weapon 1 | 1 . Energy Gun . | . . Energy Cannon . | . . Ballistic Gun 1 | 1 . Ballistic Cannon . | . . Launcher . | . . Special Weapon . | . . Impact Weapon . | . . Slashing Weapon . | . . Piercing Weapon . | . . Special Melee Weapon . | . . Unidentified Prototypes . | . . Parts Lost 5 | . 5 Power 2 | . 2 Propulsion 2 | . 2 Utility . | . . Weapon 1 | . 1 Highest Loss Streak 4 | . 4 To Critical Strikes . | . . Average Slot Usage (%) 66 | . 66 Engine 12 | . 12 Leg 25 | . 25 Storage 14 | . 14 Ballistic Gun 14 | . 14 Peak Build Rating 5 | 5 5 Average Rating 4 | 4 4 On Entrance 2 | . 5 Naked Turns . | . . Heaviest Build 10 | 10 10 Greatest Support 20 | 20 20 Greatest Overweight (x) 2 | 2 . Average Overweight (x) . | . . Largest Inventory Capacity 8 | 8 8 Average Capacity 7 | 7 8 Most Carried 1 | 1 1 Average Carried . | . . Final Capacity 8 | 8 8 Final Carried 1 | 1 . Class Distribution -------------------- 100% | Mutant Dominant Class ---------------- Mutant | -10/Materials Resources | -11 -10 ----------- Run | Yrd Mat Matter Collected 285 | 209 76 Remotely . | . . Salvage Created 76 | . 76 Parts 4 | . 4 Haulers Intercepted . | . . Recyclers Shooed . | . . Parts Field Recycled . | . . Retrieved Matter . | . . Parts Self-Destructed . | . . Prevented . | . . Kills | -11 -10 ------- Run | Yrd Mat Combat Hostiles Destroyed 2 | . 2 Guns 2 | . 2 Classes Destroyed 1 | . 1 Grunt 2 | . 2 Best Kill Streak 2 | . 2 Combat Bots Only 2 | . 2 Max Kills in Single Turn 1 | . 1 Gunslinging . | . . Exploded . | . . Melee . | . . Uniques/NPCs Destroyed . | . . Combat | -11 -10 -------- Run | Yrd Mat Hostile Shots Fired 95 | . 95 Missed 23 | . 23 Damage Taken 666 | . 666 Core 256 | . 256 Absorbed by Shields . | . . Core Remaining (%) 100 | 100 . Volleys Fired 16 | . 16 Largest 1 | . 1 Hottest 20 | . 20 Shots Fired 16 | . 16 Gun 16 | . 16 Cannon . | . . Launcher . | . . Special . | . . Kinetic 16 | . 16 Thermal . | . . Explosive . | . . Electromagnetic . | . . Robot Hit Streak 7 | . 7 Robot Miss Streak 2 | . 2 Penetration Max . | . . Secondary Targets . | . . Shots Hit Robots 13 | . 13 Core Hits 5 | . 5 Critical Kills . | . . Critical Parts Destroyed . | . . Critical Strikes . | . . Melee Attacks . | . . Impact . | . . Slashing . | . . Piercing . | . . Sneak Attacks . | . . Combat Hostiles . | . . Follow-up Attacks . | . . Damage Inflicted 172 | . 172 Guns 172 | . 172 Cannons . | . . Explosions . | . . Melee . | . . Ramming . | . . Kinetic 172 | . 172 Thermal . | . . Explosive . | . . Electromagnetic . | . . Impact . | . . Slashing . | . . Piercing . | . . Highest Corruption . | . . Average Corruption . | . . Corruption Purged . | . . Corruption Blocked . | . . Overload Shots . | . . Overflow Damage . | . . Projectiles . | . . Explosions . | . . Melee . | . . Knockbacks . | . . Impact . | . . Kinetic . | . . Secondary . | . . Self-Inflicted Damage . | . . Shots . | . . Rammed . | . . Targets Rammed . | . . Kicked . | . . Crushed . | . . Highest Temperature 12 | . 12 Average Temperature 12 | . 12 Received Heat Transfer 108 | . 108 Siege Activations . | . . Robots Corrupted . | . . Combat Hostiles . | . . Parts Fried . | . . Impact Corruptions . | . . Robots Melted . | . . Combat Hostiles . | . . Parts Melted . | . . Heat Transferred . | . . Parts Sabotaged . | . . Parts Stolen . | . . Parts Stripped . | . . Power Chain Reactions . | . . Alert | -11 -10 ------- Run | Yrd Mat Peak Influence 85 | . 85 Initial . | . . Average 15 | . 21 Maximum Alert Level . | . . Low Security (%) 100 | 100 100 Level 1 . | . . Level 2 . | . . Level 3 . | . . Level 4 . | . . Level 5 . | . . High Security . | . . Max Security . | . . Squads Dispatched . | . . Investigation . | . . Extermination . | . . Reinforcement . | . . Assault . | . . Garrison . | . . Intercept . | . . Searches Triggered . | . . Construction Impeded . | . . Haulers Reinforced . | . . Active Scanning Responses . | . . Cargo Convoy Interrupts . | . . Stealth | -11 -10 --------- Run | Yrd Mat Distress Signals 1 | . 1 Communications Jammed . | . . Distress Signals . | . . Times Spotted 8 | . 8 Peak Tracking Total 5 | . 5 Tactical Retreats 1 | . 1 Traps | -11 -10 ------- Run | Yrd Mat Traps Triggered . | . . Indirectly . | . . Trap Hack Attempts . | . . Triggered . | . . Disarmed . | . . Reprogrammed . | . . Reused . | . . Traps Extracted . | . . Installed . | . . Triggered . | . . Machines | -11 -10 ---------- Run | Yrd Mat Machines Disabled . | . . Max in Single Turn . | . . Machines Repaired . | . . Machines Dismantled . | . . Machines Sabotaged . | . . Overloaded Fab Kills . | . . Hacking | -11 -10 --------- Run | Yrd Mat Machines Accessed 1 | . 1 Terminals 1 | . 1 Fabricators . | . . Repair Stations . | . . Recycling Units . | . . Scanalyzers . | . . Garrison Access . | . . Total Hacks 1 | . 1 Successful 1 | . 1 Failed . | . . Catastrophic . | . . Database Lockouts . | . . Manual . | . . Terminals 1 | . 1 Fabricators . | . . Repair Stations . | . . Recycling Units . | . . Scanalyzers . | . . Garrison Access . | . . Terminal Hacks 1 | . 1 Alert Level 1 | . 1 Fabricator Hacks . | . . Repair Station Hacks . | . . Recycling Unit Hacks . | . . Scanalyzer . | . . Garrison Access Hacks . | . . Unauthorized Hacks . | . . Terminals . | . . Fabricators . | . . Repair Stations . | . . Recycling Units . | . . Scanalyzers . | . . Garrison Access . | . . Data Cores Recovered . | . . Used . | . . Hacking Detections . | . . Full Trace Events . | . . Feedback Events . | . . Feedback Blocked . | . . Robot Schematics Acquired . | . . Robots Built . | . . Authchips . | . . Time . | . . Total Robot Build Rating . | . . Part Schematics Acquired . | . . Parts Built . | . . Authchips . | . . Time . | . . Total Part Build Rating . | . . Parts Repaired . | . . Time . | . . Parts Recycled . | . . Recycled Matter . | . . Retrieved Matter . | . . Retrieved Components . | . . Parts Scanalyzed . | . . Part Schematics Acquired . | . . Parts Damaged . | . . Bothacking | -11 -10 ------------ Run | Yrd Mat Used RIF Installer . | . . Robots Hacked . | . . Non-combat . | . . Combat . | . . Robot Hacks Applied . | . . Relay Couplers Released . | . . Fabnet Peak Effective % . | . . Robots Rewired . | . . Allies Hacked . | . . Hacks Repelled . | . . Allies | -11 -10 -------- Run | Yrd Mat Total Allies . | . . Largest Group . | . . Highest-Rated Group . | . . Highest-Rated Ally . | . . Total Orders . | . . Ally Attacks . | . . Total Damage . | . . Kills . | . . Allies Corrupted . | . . Allies Melted . | . . Intel | -11 -10 ------- Run | Yrd Mat Robot Analysis Total . | . . Derelict Logs Recovered . | . . Drone Launches . | . . Drone Recoveries . | . . Exploration | -11 -10 ------------- Run | Yrd Mat Turns Passed 338 | 89 249 Spaces Moved 206 | 68 138 Core 5 | 5 . Treads . | . . Legs 201 | 63 138 Wheels . | . . Hover . | . . Flight . | . . Fastest Speed 50 | 50 120 Average Speed 119 | 119 120 Slowest Speed 150 | 150 120 Overloaded Moves . | . . Propulsion Burnouts . | . . Robots Hopped . | . . Cave-ins Triggered . | . . Exploration Rate (%) 13 | 4 23 Regions Visited 1 Branch Regions . Pre-discovered Areas . | . . Known Exits Taken . | . . Unknown Exits Taken 1 | 1 . Scrap Searched . | . . Spaces Dug . | . . Terrain Destroyed . | . . Melee . | . . Projectile . | . . AOE . | . . Terrain Rammed . | . . Walls Destroyed . | . . Machines Disabled . | . . Actions | -11 -10 --------- Run | Yrd Mat Total 279 | 73 206 Wait 51 | . 51 Move 205 | 67 138 Hop . | . . Pick Up 1 | 1 . Fast Attach 5 | 5 . Attach 1 | . 1 Detach . | . . Swap . | . . Drop . | . . Fire 16 | . 16 Melee . | . . Ram . | . . Kick . | . . Crush . | . . Escape Stasis . | . . Rewire . | . . Trap . | . . Miscellaneous . | . . Route ------- -11/Scrapyard -10/Materials History --------- Turn | Location | Event 23 | -11/Scrapyard | Discovered new exit (range 15) 90 | -11/Scrapyard | Entered Materials 301 | -10/Materials | Build established: Mutant 324 | -10/Materials | Core integrity fell below 50% 336 | -10/Materials | Core integrity fell below 20% 339 | -10/Materials | Destroyed by S-10 Pest with Light Assault Rifle Last Messages --------------- Current Alert Level: Low Security 00197_ K-01 Serf collects debris. 00241_ G-34 Mercenary destroyed. 00242_ K-01 Serf collects debris. 00244_ Lgt. Ion Engine destroyed. 00245_ K-01 Serf collects debris. 00252_ Critical hit (Burn: +37). 00253_ G-47 Trooper destroyed. 00253_ K-01 Serf collects debris. 00256_ Acquired 32 matter. 00257_ K-01 Serf collects debris. 00257_ Acquired 44 matter. 00261_ K-01 Serf collects debris. 00279_ W-16 Scout sends out distress signal. 00308_ M-13 Machinist repairs Flight Unit. 00315_ Aluminum Leg destroyed. 00326_ Lgt. Ion Engine destroyed. 00330_ Assault Rifle destroyed. 00330_ M-13 Machinist repairs A-02 Transporter. Map ----- +----------------------------------------------------+ | ???????????????????????????????????????????? | | ???????????????????????????????????????????? | | ???????????????????????????????????????????? | | ???????????????????????????????????????????? | | ???????????????????????????????????????????? | | ???????????????????????????????????????????? | | ???????????????????????????????????????????? | | ???????????????????????????????????????????? | | ???????????????????????????????????????????? | | ???????????????????????????????????????????? | | ???????????????????????????????????????????? | | ???????????????????????????????? ??????????? | | ???????????????????????????????? ??????????? | | ??????????????????????????????## ??????????? | | ??????????????????????????????? ??????????? | | ??????????????????????????????? ??????????? | | ??????????????????????????????? ??????????? | | ???????????????????????????????# ???????#### | | ???????????????????????????????# #??????# | | ???????????????????????????????# ###????# | | ???????????????????????????????# #????# | | ???????????????????????????????# #????# | | ???????????????????????????????# #????# | | ???????????????#???????????????# #???####+ | | ???????????????# ############### #???# | | ???????????????# s@ s ##### | | ???????????????# s + | | ???????????????# a mu k ##### | | ???????????????# ############### #???# | | ???????????????#r??????????????# #???# | | ???????????????#???????????????# ##### | | ???????????????????????????????# + | | ???????????????????????????????# ##### | | ???????????????????????????????# #???##### | | ???????????????????????????????# #???????? | | ???????????????????????????????# #???????? | | ???????????????????????????????# #???????? | | ???????????????????????????????# #???????? | | ???????????????????????????????# #???????? | | ???????????????????????????????# #???????? | | ?????????????????????????####### #???????? | | ?????????????????????????# # #???????? | | ?????????????????????????# # #???????? | | ?????????????????????????# # #???????? | | ?????????????????????????# # ######### | | ?????????????????????????# # | | ?????????????????????????# + | | ?????????????????????????# # | | ?????????????????????????# # | | ?????????????????????????# # | +----------------------------------------------------+ Best States ------------- Heat Dissipation 25 Energy Generation 10 Energy Capacity 125 Matter Stores 298 Matter Capacity 300 Sight Range 16 Terrain Scan Density 10 Evasion (%) 55 Item Schematics ----------------- None Robot Schematics ------------------ None Fabricated ------------ Nothing Alien Tech Used ----------------- None Achievements -------------- None Challenges ------------ None Game ------ Seed NullShrapnelAutobeam Manual? 0 Play Time 00:08:58 Cumulative 26.8 hours Start 2024.12.23 @ 18:19:33 End 2024.12.23 @ 18:24:24 Sessions 1 Manual Loads 0 Difficulty Rogue Special Mode None Game No. 47 Rogue 44 Adventurer 3 Explorer 0 Win Type - Total 0 Types 0/0/0/0/0/0/0/0/0 Lore% 9 Gallery% 20 Achievement% 17 Wizard Run 0 Options --------- Layout 1 ASCII 0 Keyboard 1 Movement Numpad Keybinds 0 Fullscreen 1 Font 24/Smallcaps Map View 50x35 Zoom Use 0% Tactical HUD 1 Map Filters NONE Filters NONE Steam 1 RUN: 4b5a832a-ab81-42f7-a4bd-fc2c4c22021a